{"text_format":"3","workbook":"xlsx","n_sheets":3,"sheets":["START","MARKETINGBUDGETPLAN","KATEGORIEDIAGRAMM"],"not_rendered":{"charts":1,"defined_names":4,"pivot_tables":1},"read":"whole","date_system":"1900"}

{"sheet":"START","index":0,"n_rows":7,"n_cols":2,"rows_kept":7}
[null,"Über diese Vorlage"]
[null,"Erstellen Sie in dieser Arbeitsmappe einen Marketing-Budgetplan und ein Kategorie-Chart."]
[null,"Geben Sie Kategorien, Mengen und Kosten in die Tabelle im Arbeitsblatt Marketing-Budgetplan ein. Die Veranstaltungskosten und die geschätzte Gesamtsumme der Marketingkosten werden automatisch berechnet."]
[null,"Ein gruppiertes Säulendiagramm wird in dem Arbeitsblatt \"Kategorienchart\" automatisch aktualisiert."]
[null,"Hinweis: "]
[null,"Zusätzliche Anweisungen wurden in Spalte A auf den Arbeitsblättern MARKETING-BUDGETPLAN und KATEGORIENCHART bereitgestellt. Dieser Text wurde absichtlich ausgeblendet. Um Text zu entfernen, wählen Sie Spalte A und dann ENTF aus. Um Text ein-/auszublenden, wählen Sie unten die Option \"Zusätzlicher Anleitungstext\" aus."]
[null,"Wenn Sie mehr über Tabellen erfahren möchten, drücken Sie die UMSCHALTTASTE und dann F10 in einer Tabelle, wählen Sie die Option \"TABELLE\" und dann \"ALTERNATIVTEXT\" aus. Bei PivotTables drücken Sie die UMSCHALTTASTE und dann innerhalb einer Tabelle F10, wählen Sie die Option \"PIVOTTABLE-OPTIONEN\" und dann die Registerkarte \"ALTERNATIVTEXT\" aus."]

{"sheet":"MARKETINGBUDGETPLAN","index":1,"n_rows":61,"n_cols":7,"rows_kept":61,"merged":[[3,1,3,2],[4,1,4,2],[5,1,5,2],[6,1,6,2]]}
[]
[null,"MARKETING-BUDGETPLAN"]
[{"$nulls":4},"Datenschnitte zum Filtern der Datentabelle nach primäre Kategorie befinden sich in dieser Zelle."]
[null,"ANZAHL DER TEILNEHMER",null,50]
[null,"VERANSTALTUNGSKOSTEN",null,{"$f":"SUMIF(Daten[Primäre Kategorie],\"Veranstaltung\",Daten[Geschätztes Teilergebnis])","v":{"v":2500,"d":"2,500.00 €"}}]
[null,"VERANSTALTUNGSPREIS pro PERSON",null,{"$f":"EventCosts/NumberOfAttendees","v":{"v":50,"d":"50.00 €"}}]
[null,"GESCHÄTZTE GESAMTSUMME FÜR MARKETING",null,{"$f":"SUMIF(Daten[Primäre Kategorie],\"<>Veranstaltung\",Daten[Geschätztes Teilergebnis])","v":{"v":45743,"d":"45,743.00 €"}}]
[null,"ZWISCHENSUMME",null,{"$f":"SUBTOTAL(109,Daten[Geschätztes Teilergebnis])","v":{"v":0,"d":"0.00 €"}}]
[]
[null,"Primäre Kategorie","Sekundäre Kategorie","Geschätzte Menge","Geschätzte Kosten pro Einheit","Geschätztes Teilergebnis","Notizen"]
[null,"Untersuchungen","Gebühren für Recherchefirma",2,{"v":2300,"d":"2,300.00 €"},{"$f":"Daten[[#This Row],[Geschätzte Menge]]*Daten[[#This Row],[Geschätzte Kosten pro Einheit]]","v":{"v":4600,"d":"4,600.00 €"}}]
[null,"Untersuchungen","Internetrecherche",1,{"v":1100,"d":"1,100.00 €"},{"$f":"Daten[[#This Row],[Geschätzte Menge]]*Daten[[#This Row],[Geschätzte Kosten pro Einheit]]","v":{"v":1100,"d":"1,100.00 €"}}]
[null,"Untersuchungen","Unabhängige Recherche",3,{"v":300,"d":"300.00 €"},{"$f":"Daten[[#This Row],[Geschätzte Menge]]*Daten[[#This Row],[Geschätzte Kosten pro Einheit]]","v":{"v":900,"d":"900.00 €"}}]
[null,"Untersuchungen","Sonstige Recherche",2,{"v":250,"d":"250.00 €"},{"$f":"Daten[[#This Row],[Geschätzte Menge]]*Daten[[#This Row],[Geschätzte Kosten pro Einheit]]","v":{"v":500,"d":"500.00 €"}}]
[null,"Kommunikation","Werbebroschüren",{"v":5000,"d":"5,000"},{"v":0.15,"d":"0.15 €"},{"$f":"Daten[[#This Row],[Geschätzte Menge]]*Daten[[#This Row],[Geschätzte Kosten pro Einheit]]","v":{"v":750,"d":"750.00 €"}}]
[null,"Kommunikation","Fernsehen",5,{"v":4000,"d":"4,000.00 €"},{"$f":"Daten[[#This Row],[Geschätzte Menge]]*Daten[[#This Row],[Geschätzte Kosten pro Einheit]]","v":{"v":20000,"d":"20,000.00 €"}}]
[null,"Kommunikation","Radio",13,{"v":350,"d":"350.00 €"},{"$f":"Daten[[#This Row],[Geschätzte Menge]]*Daten[[#This Row],[Geschätzte Kosten pro Einheit]]","v":{"v":4550,"d":"4,550.00 €"}}]
[null,"Kommunikation","Web",1,{"v":350,"d":"350.00 €"},{"$f":"Daten[[#This Row],[Geschätzte Menge]]*Daten[[#This Row],[Geschätzte Kosten pro Einheit]]","v":{"v":350,"d":"350.00 €"}}]
[null,"Netzwerk","Netzwerk",null,null,{"$f":"Daten[[#This Row],[Geschätzte Menge]]*Daten[[#This Row],[Geschätzte Kosten pro Einheit]]","v":{"v":0,"d":"0.00 €"}}]
[null,"Netzwerk","Mitgliedschaften",3,{"v":50,"d":"50.00 €"},{"$f":"Daten[[#This Row],[Geschätzte Menge]]*Daten[[#This Row],[Geschätzte Kosten pro Einheit]]","v":{"v":150,"d":"150.00 €"}}]
[null,"Netzwerk","Verbände",2,{"v":20,"d":"20.00 €"},{"$f":"Daten[[#This Row],[Geschätzte Menge]]*Daten[[#This Row],[Geschätzte Kosten pro Einheit]]","v":{"v":40,"d":"40.00 €"}}]
[null,"Netzwerk","Abonnements",2,{"v":32,"d":"32.00 €"},{"$f":"Daten[[#This Row],[Geschätzte Menge]]*Daten[[#This Row],[Geschätzte Kosten pro Einheit]]","v":{"v":64,"d":"64.00 €"}}]
[null,"Veranstaltung","Anzahl der Teilnehmer",50,null,{"$f":"Daten[[#This Row],[Geschätzte Menge]]*Daten[[#This Row],[Geschätzte Kosten pro Einheit]]","v":{"v":0,"d":"0.00 €"}}]
[null,"Veranstaltung","Mahlzeiten (Frühstück, Mittag- oder Abendessen)",null,null,{"$f":"Daten[[#This Row],[Geschätzte Menge]]*Daten[[#This Row],[Geschätzte Kosten pro Einheit]]","v":{"v":0,"d":"0.00 €"}}]
[null,"Veranstaltung","Essen",null,{"v":23,"d":"23.00 €"},{"$f":"Daten[[#This Row],[Geschätzte Menge]]*Daten[[#This Row],[Geschätzte Kosten pro Einheit]]","v":{"v":0,"d":"0.00 €"}}]
[null,"Veranstaltung","Steuer (10%)",null,{"v":2.3000000000000003,"d":"2.30 €"},{"$f":"Daten[[#This Row],[Geschätzte Menge]]*Daten[[#This Row],[Geschätzte Kosten pro Einheit]]","v":{"v":0,"d":"0.00 €"}}]
[null,"Veranstaltung","Trinkgeld für Speisen und Getränke (20%)",null,{"v":5.0600000000000005,"d":"5.06 €"},{"$f":"Daten[[#This Row],[Geschätzte Menge]]*Daten[[#This Row],[Geschätzte Kosten pro Einheit]]","v":{"v":0,"d":"0.00 €"}}]
[null,"Veranstaltung","Parkplatzservice",1,{"v":300,"d":"300.00 €"},{"$f":"Daten[[#This Row],[Geschätzte Menge]]*Daten[[#This Row],[Geschätzte Kosten pro Einheit]]","v":{"v":300,"d":"300.00 €"}}]
[null,"Veranstaltung","Unterhaltung Nr. 1",1,{"v":800,"d":"800.00 €"},{"$f":"Daten[[#This Row],[Geschätzte Menge]]*Daten[[#This Row],[Geschätzte Kosten pro Einheit]]","v":{"v":800,"d":"800.00 €"}}]
[null,"Veranstaltung","Unterhaltung Nr. 2",1,{"v":1200,"d":"1,200.00 €"},{"$f":"Daten[[#This Row],[Geschätzte Menge]]*Daten[[#This Row],[Geschätzte Kosten pro Einheit]]","v":{"v":1200,"d":"1,200.00 €"}}]
[null,"Veranstaltung","Sonstige Dienstleistungen",1,{"v":200,"d":"200.00 €"},{"$f":"Daten[[#This Row],[Geschätzte Menge]]*Daten[[#This Row],[Geschätzte Kosten pro Einheit]]","v":{"v":200,"d":"200.00 €"}}]
[null,"Audio-/Videodienste","Standard-PA-System und Podium",1,{"v":0,"d":"0.00 €"},{"$f":"Daten[[#This Row],[Geschätzte Menge]]*Daten[[#This Row],[Geschätzte Kosten pro Einheit]]","v":{"v":0,"d":"0.00 €"}},"Vom Veranstaltungsort bereitgestellt (normalerweise)"]
[null,"Audio-/Videodienste","Bildschirm",1,{"v":0,"d":"0.00 €"},{"$f":"Daten[[#This Row],[Geschätzte Menge]]*Daten[[#This Row],[Geschätzte Kosten pro Einheit]]","v":{"v":0,"d":"0.00 €"}},"Vom Veranstaltungsort bereitgestellt (normalerweise)"]
[null,"Audio-/Videodienste","Miete für XGA-Daten-/Videoprojektor",1,{"v":45,"d":"45.00 €"},{"$f":"Daten[[#This Row],[Geschätzte Menge]]*Daten[[#This Row],[Geschätzte Kosten pro Einheit]]","v":{"v":45,"d":"45.00 €"}}]
[null,"Audio-/Videodienste","Kabellose Maus",1,{"v":12,"d":"12.00 €"},{"$f":"Daten[[#This Row],[Geschätzte Menge]]*Daten[[#This Row],[Geschätzte Kosten pro Einheit]]","v":{"v":12,"d":"12.00 €"}}]
[null,"Audio-/Videodienste","Steckdosenleisten",1,{"v":0,"d":"0.00 €"},{"$f":"Daten[[#This Row],[Geschätzte Menge]]*Daten[[#This Row],[Geschätzte Kosten pro Einheit]]","v":{"v":0,"d":"0.00 €"}},"Vom Veranstaltungsort bereitgestellt (normalerweise)"]
[null,"Audio-/Videodienste","Verlängerungskabel",1,{"v":0,"d":"0.00 €"},{"$f":"Daten[[#This Row],[Geschätzte Menge]]*Daten[[#This Row],[Geschätzte Kosten pro Einheit]]","v":{"v":0,"d":"0.00 €"}},"Vom Veranstaltungsort bereitgestellt (normalerweise)"]
[null,"Audio-/Videodienste","Lavalier-Mikrofon",1,{"v":0,"d":"0.00 €"},{"$f":"Daten[[#This Row],[Geschätzte Menge]]*Daten[[#This Row],[Geschätzte Kosten pro Einheit]]","v":{"v":0,"d":"0.00 €"}},"Vom Veranstaltungsort bereitgestellt (normalerweise)"]
[null,"Audio-/Videodienste","Labor- und AV-Techniker",1,{"v":300,"d":"300.00 €"},{"$f":"Daten[[#This Row],[Geschätzte Menge]]*Daten[[#This Row],[Geschätzte Kosten pro Einheit]]","v":{"v":300,"d":"300.00 €"}}]
[null,"Audio-/Videodienste","Steuer (8,8%)",null,{"v":31.415999999999997,"d":"31.42 €"},{"$f":"Daten[[#This Row],[Geschätzte Menge]]*Daten[[#This Row],[Geschätzte Kosten pro Einheit]]","v":{"v":0,"d":"0.00 €"}}]
[null,"Zusätzliche Kosten","Einladung \n(Druck- und Portokosten)",null,{"v":834,"d":"834.00 €"},{"$f":"Daten[[#This Row],[Geschätzte Menge]]*Daten[[#This Row],[Geschätzte Kosten pro Einheit]]","v":{"v":0,"d":"0.00 €"}}]
[null,"Zusätzliche Kosten","Zeit und Aufwand (Z&A)",null,{"v":600,"d":"600.00 €"},{"$f":"Daten[[#This Row],[Geschätzte Menge]]*Daten[[#This Row],[Geschätzte Kosten pro Einheit]]","v":{"v":0,"d":"0.00 €"}}]
[null,"Zusätzliche Kosten","Firmenmitarbeiter Z&A",null,{"v":200,"d":"200.00 €"},{"$f":"Daten[[#This Row],[Geschätzte Menge]]*Daten[[#This Row],[Geschätzte Kosten pro Einheit]]","v":{"v":0,"d":"0.00 €"}},"<Anzahl der Personen vor Ort>"]
[null,"Zusätzliche Kosten","Erfolgsgeschichten unserer Kunden Z&A",null,{"v":100,"d":"100.00 €"},{"$f":"Daten[[#This Row],[Geschätzte Menge]]*Daten[[#This Row],[Geschätzte Kosten pro Einheit]]","v":{"v":0,"d":"0.00 €"}}]
[null,"Werbegeschenke","Werbegeschenk Nr. 1",25,{"v":10,"d":"10.00 €"},{"$f":"Daten[[#This Row],[Geschätzte Menge]]*Daten[[#This Row],[Geschätzte Kosten pro Einheit]]","v":{"v":250,"d":"250.00 €"}},"<Beschreibung des Werbegeschenks>"]
[null,"Werbegeschenke","Werbegeschenk Nr. 2",25,{"v":5,"d":"5.00 €"},{"$f":"Daten[[#This Row],[Geschätzte Menge]]*Daten[[#This Row],[Geschätzte Kosten pro Einheit]]","v":{"v":125,"d":"125.00 €"}},"<Beschreibung des Werbegeschenks>"]
[null,"Werbeaktionen","Produkt-Werbegeschenke",50,{"v":8,"d":"8.00 €"},{"$f":"Daten[[#This Row],[Geschätzte Menge]]*Daten[[#This Row],[Geschätzte Kosten pro Einheit]]","v":{"v":400,"d":"400.00 €"}}]
[null,"Werbeaktionen","Produktrabatte",300,{"v":3,"d":"3.00 €"},{"$f":"Daten[[#This Row],[Geschätzte Menge]]*Daten[[#This Row],[Geschätzte Kosten pro Einheit]]","v":{"v":900,"d":"900.00 €"}}]
[null,"Werbeaktionen","Sonderangebote",200,{"v":2.5,"d":"2.50 €"},{"$f":"Daten[[#This Row],[Geschätzte Menge]]*Daten[[#This Row],[Geschätzte Kosten pro Einheit]]","v":{"v":500,"d":"500.00 €"}}]
[null,"Werbung","Broschüren (Entwicklung und Produktion)",{"v":5000,"d":"5,000"},{"v":0.15,"d":"0.15 €"},{"$f":"Daten[[#This Row],[Geschätzte Menge]]*Daten[[#This Row],[Geschätzte Kosten pro Einheit]]","v":{"v":750,"d":"750.00 €"}}]
[null,"Werbung","Sendungen",{"v":15000,"d":"15,000"},{"v":0.04,"d":"0.04 €"},{"$f":"Daten[[#This Row],[Geschätzte Menge]]*Daten[[#This Row],[Geschätzte Kosten pro Einheit]]","v":{"v":600,"d":"600.00 €"}}]
[null,"Werbung","Postkarten",{"v":15000,"d":"15,000"},{"v":0.03,"d":"0.03 €"},{"$f":"Daten[[#This Row],[Geschätzte Menge]]*Daten[[#This Row],[Geschätzte Kosten pro Einheit]]","v":{"v":450,"d":"450.00 €"}}]
[null,"Werbung","Fernsehen",2,{"v":600,"d":"600.00 €"},{"$f":"Daten[[#This Row],[Geschätzte Menge]]*Daten[[#This Row],[Geschätzte Kosten pro Einheit]]","v":{"v":1200,"d":"1,200.00 €"}}]
[null,"Werbung","Radio",4,{"v":300,"d":"300.00 €"},{"$f":"Daten[[#This Row],[Geschätzte Menge]]*Daten[[#This Row],[Geschätzte Kosten pro Einheit]]","v":{"v":1200,"d":"1,200.00 €"}}]
[null,"Werbung","Zeitungen",6,{"v":220,"d":"220.00 €"},{"$f":"Daten[[#This Row],[Geschätzte Menge]]*Daten[[#This Row],[Geschätzte Kosten pro Einheit]]","v":{"v":1320,"d":"1,320.00 €"}}]
[null,"Werbung","Plakatwände",2,{"v":556,"d":"556.00 €"},{"$f":"Daten[[#This Row],[Geschätzte Menge]]*Daten[[#This Row],[Geschätzte Kosten pro Einheit]]","v":{"v":1112,"d":"1,112.00 €"}}]
[null,"Werbung","Werbung auf Bussen",3,{"v":125,"d":"125.00 €"},{"$f":"Daten[[#This Row],[Geschätzte Menge]]*Daten[[#This Row],[Geschätzte Kosten pro Einheit]]","v":{"v":375,"d":"375.00 €"}}]
[null,"Öffentlichkeitsarbeit","Wohltätigkeitsveranstaltungen",3,{"v":200,"d":"200.00 €"},{"$f":"Daten[[#This Row],[Geschätzte Menge]]*Daten[[#This Row],[Geschätzte Kosten pro Einheit]]","v":{"v":600,"d":"600.00 €"}}]
[null,"Öffentlichkeitsarbeit","Werbung",4,{"v":200,"d":"200.00 €"},{"$f":"Daten[[#This Row],[Geschätzte Menge]]*Daten[[#This Row],[Geschätzte Kosten pro Einheit]]","v":{"v":800,"d":"800.00 €"}}]
[null,"Öffentlichkeitsarbeit","Werbeaktionen durch Mitarbeiter",6,{"v":200,"d":"200.00 €"},{"$f":"Daten[[#This Row],[Geschätzte Menge]]*Daten[[#This Row],[Geschätzte Kosten pro Einheit]]","v":{"v":1200,"d":"1,200.00 €"}}]
[null,"Öffentlichkeitsarbeit","Sponsoring",3,{"v":200,"d":"200.00 €"},{"$f":"Daten[[#This Row],[Geschätzte Menge]]*Daten[[#This Row],[Geschätzte Kosten pro Einheit]]","v":{"v":600,"d":"600.00 €"}}]

{"sheet":"KATEGORIEDIAGRAMM","index":2,"n_rows":8,"n_cols":13,"rows_kept":8}
[]
[null,"MARKETING-BUDGETPLAN"]
[]
[null,null,"Primäre Kategorie"]
[null,null,"Zusätzliche Kosten","Werbung","Audio-/Videodienste","Kommunikation","Veranstaltung","Werbegeschenke","Netzwerk","Werbeaktionen","Öffentlichkeitsarbeit","Untersuchungen","Gesamtergebnis"]
[null,"Geschätztes Teilergebnis",{"v":0,"d":"0.00 €"},{"v":7007,"d":"7,007.00 €"},{"v":357,"d":"357.00 €"},{"v":25650,"d":"25,650.00 €"},{"v":2500,"d":"2,500.00 €"},{"v":375,"d":"375.00 €"},{"v":254,"d":"254.00 €"},{"v":1800,"d":"1,800.00 €"},{"v":3200,"d":"3,200.00 €"},{"v":7100,"d":"7,100.00 €"},{"v":48243,"d":"48,243.00 €"}]
[]
[null," Spalten-PivotChart mit primären Kategorien und deren geschätzten Teilergebnissen befindet sich in dieser Zelle."]